lending/lending_fUSD_20240710
["ID","MTS","AMOUNT","RATE_DAILY","PERIOD"]
[331610682,1720581034175,-462.24258694,0.00013543,2]
[331610683,1720581034185,-10472.4347,0.00013562,2]
[331610684,1720581034194,-30288.7681,0.00013562,2]
[331610685,1720581034203,-232.06592917,0.00013598,2]
[331610686,1720581034212,-602.5410838,0.00013598,2]
[331610687,1720581034234,-322.16721947,0.00013598,2]
[331610688,1720581034243,-447.8963,0.00013598,2]
[331610689,1720581034253,-602.54108375,0.00013613,2]
[331610690,1720581034262,-602.54108375,0.00013627,2]
[331610691,1720581034272,-203.97728597,0.00013636,2]
[331610692,1720581034283,-602.54108375,0.00013642,2]
[331610693,1720581034292,-203.97728596,0.00013653,2]
[331610694,1720581034302,-602.54108375,0.00013656,2]
[331610695,1720581034311,-1582.500659,0.00013657,2]
[331610696,1720581034320,-2122.495846,0.00013657,2]
[331610697,1720581034330,-2547.110859,0.00013657,2]
[331610698,1720581034340,-1496.358233,0.00013657,2]
[331610699,1720581034350,-401.47756,0.0001366,2]
[331610700,1720581034360,-602.54108375,0.00013671,2]
[331610701,1720581034369,-303.8186,0.00013681,2]
[331610702,1720581034379,-602.54108375,0.00013685,2]
[331610703,1720581034388,-332.8417966,0.00013698,2]
[331610704,1720581034398,-500.0,0.00013698,2]
[331610705,1720581034407,-500.0,0.00013698,2]
[331610706,1720581034417,-500.0,0.00013698,2]
[331610707,1720581034427,-500.0,0.00013698,2]
[331610708,1720581034436,-3087.98,0.00013698,2]
[331610709,1720581034445,-500.0,0.00013698,2]
[331610710,1720581034455,-500.0,0.00013698,2]
[331610711,1720581034464,-877.91,0.00013698,2]
[331610712,1720581034474,-500.0,0.00013698,2]
[331610713,1720581034484,-500.0,0.00013698,2]
[331610714,1720581034495,-1550.95,0.00013698,2]
[331610715,1720581034505,-500.0,0.00013698,2]
[331610716,1720581034516,-892.88,0.00013698,2]
[331610717,1720581034526,-500.0,0.00013698,2]
[331610718,1720581034535,-500.0,0.00013698,2]
[331610719,1720581034545,-500.0,0.00013698,2]
[331610720,1720581034555,-1844.83,0.00013698,2]
[331610721,1720581034565,-500.0,0.00013698,2]
[331610722,1720581034574,-2890.16,0.00013698,2]
[331610723,1720581034584,-500.0,0.00013698,2]
[331610724,1720581034594,-500.0,0.00013698,2]
[331610725,1720581034604,-401.75333283,0.00013698,2]
[331610726,1720581034614,-4315.34,0.00013698,2]
[331610727,1720581034624,-510.16264573,0.00013698,2]
[331610728,1720581034635,-500.0,0.00013698,2]
[331610729,1720581034645,-150.79488935,0.00013698,2]
[331610730,1720581034655,-649.6061589,0.00013698,2]
[331610731,1720581034670,-849.77,0.00013698,2]
[331610732,1720581034680,-500.0,0.00013698,2]
[331610733,1720581034691,-500.0,0.00013698,2]
[331610734,1720581034701,-303.99783029,0.00013698,2]
[331610735,1720581034711,-1831.54,0.00013698,2]
[331610736,1720581034722,-155.85306857,0.00013698,2]
[331610737,1720581034732,-2114.77,0.00013698,2]
[331610738,1720581034743,-404.19686456,0.00013698,2]
[331610739,1720581034753,-43.74182602,0.00013698,2]
[331610740,1720581034772,-589.71502884,0.00013698,2]
[331610741,1720581034784,-500.0,0.00013698,2]
[331610742,1720581034795,-200.0,0.00013698,2]
[331610743,1720581034804,-3379.6,0.00013698,2]
[331610744,1720581034815,-500.0,0.00013698,2]
[331610745,1720581034824,-302.05424433,0.00013698,2]
[331610746,1720581034834,-1397.14,0.00013698,2]
[331610747,1720581034845,-500.0,0.00013698,2]
[331610748,1720581034855,-500.0,0.00013698,2]
[331610749,1720581034866,-2431.91,0.00013698,2]
[331610750,1720581034876,-500.0,0.00013698,2]
[331610751,1720581034886,-500.0,0.00013698,2]
[331610752,1720581034897,-3779.98,0.00013698,2]
[331610753,1720581034907,-500.0,0.00013698,2]
[331610754,1720581034917,-500.0,0.00013698,2]
[331610755,1720581034927,-2727.48,0.00013698,2]
[331610756,1720581034938,-500.0,0.00013698,2]
[331610757,1720581034948,-2822.82,0.00013698,2]
[331610758,1720581034958,-500.0,0.00013698,2]
[331610759,1720581034968,-2873.3,0.00013698,2]
[331610760,1720581034978,-500.0,0.00013698,2]
[331610761,1720581034987,-500.0,0.00013698,2]
[331610762,1720581034998,-2274.44,0.00013698,2]
[331610763,1720581035008,-500.0,0.00013698,2]
[331610764,1720581035018,-500.0,0.00013698,2]
[331610765,1720581035028,-1539.83,0.00013698,2]
[331610766,1720581035039,-500.0,0.00013698,2]
[331610767,1720581035050,-500.0,0.00013698,2]
[331610768,1720581035060,-500.0,0.00013698,2]
[331610769,1720581035070,-500.0,0.00013698,2]
[331610770,1720581035080,-1720.27,0.00013698,2]
[331610771,1720581035090,-2165.73,0.00013698,2]
[331610772,1720581035105,-500.0,0.00013698,2]
[331610773,1720581035116,-500.0,0.00013698,2]
[331610774,1720581035126,-3081.17,0.00013698,2]
[331610775,1720581035136,-500.0,0.00013698,2]
[331610776,1720581035147,-168.71197737,0.00013698,2]
[331610777,1720581035157,-2347.05,0.00013698,2]
[331610778,1720581035167,-500.0,0.00013698,2]
[331610779,1720581035177,-500.0,0.00013698,2]
[331610780,1720581035186,-353.73261477,0.00013698,2]
[331610781,1720581035197,-500.0,0.00013698,2]
[331610782,1720581035207,-255.8270806,0.00013698,2]
[331610783,1720581035217,-500.0,0.00013698,2]
[331610784,1720581035228,-636.4515973,0.00013698,2]
[331610785,1720581035238,-500.0,0.00013698,2]
[331610786,1720581035250,-500.0,0.00013698,2]
[331610787,1720581035260,-500.0,0.00013698,2]
[331610788,1720581035270,-500.0,0.00013698,2]
[331610789,1720581035280,-500.0,0.00013698,2]
[331610790,1720581035290,-500.0,0.00013698,2]
[331610791,1720581035300,-500.0,0.00013698,2]
[331610792,1720581035311,-500.0,0.00013698,2]
[331610793,1720581035323,-500.0,0.00013698,2]
[331610794,1720581035332,-500.0,0.00013698,2]
[331610795,1720581035343,-500.0,0.00013698,2]
[331610796,1720581035354,-500.0,0.00013698,2]
[331610797,1720581035363,-190.18,0.00013698,2]
[331610798,1720581035374,-500.0,0.00013698,2]
[331610799,1720581035384,-500.0,0.00013698,2]
[331610800,1720581035394,-500.0,0.00013698,2]
[331610801,1720581035404,-396.87798516,0.00013698,2]
[331610802,1720581035414,-500.0,0.00013698,2]
[331610803,1720581035424,-500.0,0.00013698,2]
[331610804,1720581035434,-599.25266333,0.00013698,2]
[331610805,1720581035444,-183.54459306,0.00013698,2]
[331610806,1720581035454,-500.0,0.00013698,2]
[331610807,1720581035463,-500.0,0.00013698,2]
[331610808,1720581035473,-652.29,0.00013698,2]
[331610809,1720581035483,-500.0,0.00013698,2]
[331610810,1720581035493,-500.0,0.00013698,2]
[331610811,1720581035503,-500.0,0.00013698,2]
[331610812,1720581035513,-1371.22,0.00013698,2]
[331610813,1720581035523,-500.0,0.00013698,2]
[331610814,1720581035533,-500.0,0.00013698,2]
[331610815,1720581035544,-500.0,0.00013698,2]
[331610816,1720581035559,-500.0,0.00013698,2]
[331610817,1720581035570,-500.0,0.00013698,2]
[331610818,1720581035581,-500.0,0.00013698,2]
[331610819,1720581035592,-1097.5,0.00013698,2]
[331610820,1720581035605,-500.0,0.00013698,2]
[331610821,1720581035615,-500.0,0.00013698,2]
[331610822,1720581035625,-500.0,0.00013698,2]
[331610823,1720581035636,-500.0,0.00013698,2]
[331610824,1720581035648,-500.0,0.00013698,2]
[331610825,1720581035659,-500.0,0.00013698,2]
[331610826,1720581035669,-500.0,0.00013698,2]
[331610827,1720581035680,-1172.76,0.00013698,2]
[331610828,1720581035691,-500.0,0.00013698,2]
[331610829,1720581035702,-500.0,0.00013698,2]
[331610830,1720581035714,-500.0,0.00013698,2]
[331610831,1720581035725,-500.0,0.00013698,2]
[331610832,1720581035736,-1502.2,0.00013698,2]
[331610833,1720581035746,-500.0,0.00013698,2]
[331610834,1720581035757,-500.0,0.00013698,2]
[331610835,1720581035767,-1163.65,0.00013698,2]
[331610836,1720581035777,-500.0,0.00013698,2]
[331610837,1720581035786,-500.0,0.00013698,2]
[331610838,1720581035796,-500.0,0.00013698,2]
[331610839,1720581035807,-500.0,0.00013698,2]
[331610840,1720581035817,-500.0,0.00013698,2]
[331610841,1720581035827,-500.0,0.00013698,2]
[331610842,1720581035839,-1221.12,0.00013698,2]
[331610843,1720581035850,-1659.0,0.00013698,2]
[331610844,1720581035860,-504.48711167,0.00013698,2]
[331610845,1720581035870,-500.0,0.00013698,2]
[331610846,1720581035879,-500.0,0.00013698,2]
[331610847,1720581035889,-500.0,0.00013698,2]
[331610848,1720581035900,-1504.27,0.00013698,2]
[331610849,1720581035910,-500.0,0.00013698,2]
[331610850,1720581035922,-500.0,0.00013698,2]
[331610851,1720581035933,-1430.1,0.00013698,2]
[331610852,1720581035943,-500.0,0.00013698,2]
[331610853,1720581035954,-508.00589381,0.00013698,2]
[331610854,1720581035965,-500.0,0.00013698,2]
[331610855,1720581035976,-500.0,0.00013698,2]
[331610856,1720581035989,-1137.34,0.00013698,2]
[331610857,1720581035999,-1591.72,0.00013698,2]
[331610858,1720581036010,-500.0,0.00013698,2]
[331610859,1720581036021,-500.0,0.00013698,2]
[331610860,1720581036033,-557.33,0.00013698,2]
[331610861,1720581036043,-500.0,0.00013698,2]
[331610862,1720581036055,-500.0,0.00013698,2]
[331610863,1720581036064,-950.92,0.00013698,2]
[331610864,1720581036075,-3840.16,0.00013698,2]
[331610865,1720581036087,-939.02,0.00013698,2]
[331610866,1720581036098,-481.05641946,0.00013698,2]
[331610867,1720581036110,-500.0,0.00013698,2]
[331610868,1720581036119,-748.08,0.00013698,2]
[331610869,1720581036134,-500.0,0.00013698,2]
[331610870,1720581036146,-500.0,0.00013698,2]
[331610871,1720581036156,-500.0,0.00013698,2]
[331610872,1720581036165,-500.0,0.00013698,2]
[331610873,1720581036175,-1125.48,0.00013698,2]
[331610874,1720581036185,-3087.9,0.00013698,2]
[331610875,1720581036194,-500.0,0.00013698,2]
[331610876,1720581036204,-914.73,0.00013698,2]
[331610877,1720581036214,-500.0,0.00013698,2]
[331610878,1720581036225,-500.0,0.00013698,2]
[331610879,1720581036236,-500.0,0.00013698,2]
[331610880,1720581036247,-894.02,0.00013698,2]
[331610881,1720581036257,-500.0,0.00013698,2]
[331610882,1720581036267,-500.0,0.00013698,2]
[331610883,1720581036277,-500.0,0.00013698,2]
[331610884,1720581036288,-704.13,0.00013698,2]
[331610885,1720581036298,-500.0,0.00013698,2]
[331610886,1720581036309,-500.0,0.00013698,2]
[331610887,1720581036319,-500.0,0.00013698,2]
[331610888,1720581036328,-1597.01,0.00013698,2]
[331610889,1720581036339,-1816.69,0.00013698,2]
[331610890,1720581036350,-684.38,0.00013698,2]
[331610891,1720581036360,-500.0,0.00013698,2]
[331610892,1720581036370,-500.0,0.00013698,2]
[331610893,1720581036381,-533.56,0.00013698,2]
[331610894,1720581036392,-500.0,0.00013698,2]
[331610895,1720581036402,-500.0,0.00013698,2]
[331610896,1720581036412,-1995.77,0.00013698,2]
[331610897,1720581036423,-500.0,0.00013698,2]
[331610898,1720581036433,-861.11,0.00013698,2]
[331610899,1720581036443,-500.0,0.00013698,2]
[331610900,1720581036453,-595.33906988,0.00013698,2]
[331610901,1720581036464,-1705.24,0.00013698,2]
[331610902,1720581036475,-500.0,0.00013698,2]
[331610903,1720581036485,-945.08,0.00013698,2]
[331610904,1720581036497,-500.0,0.00013698,2]
[331610905,1720581036514,-1580.18,0.00013698,2]
[331610906,1720581036524,-500.0,0.00013698,2]
[331610907,1720581036538,-500.0,0.00013698,2]
[331610908,1720581036547,-500.0,0.00013698,2]
[331610909,1720581036557,-2170.44,0.00013698,2]
[331610910,1720581036568,-278.33444391,0.00013698,2]
[331610911,1720581036579,-935.28,0.00013698,2]
[331610912,1720581036588,-500.0,0.00013698,2]
[331610913,1720581036600,-500.0,0.00013698,2]
[331610914,1720581036614,-1676.17,0.00013698,2]
[331610915,1720581036624,-500.0,0.00013698,2]
[331610916,1720581036634,-500.0,0.00013698,2]
[331610917,1720581036646,-500.0,0.00013698,2]
[331610918,1720581036659,-672.52,0.00013698,2]
[331610919,1720581036669,-500.0,0.00013698,2]
[331610920,1720581036680,-500.0,0.00013698,2]
[331610921,1720581036689,-500.0,0.00013698,2]
[331610922,1720581036699,-500.0,0.00013698,2]
[331610923,1720581036708,-673.08,0.00013698,2]
[331610924,1720581036718,-3430.04,0.00013698,2]
[331610925,1720581036728,-500.0,0.00013698,2]
[331610926,1720581036737,-500.0,0.00013698,2]
[331610927,1720581036747,-500.0,0.00013698,2]
[331610928,1720581036757,-500.0,0.00013698,2]
[331610929,1720581036767,-735.0,0.00013698,2]
[331610930,1720581036776,-500.0,0.00013698,2]
[331610931,1720581036787,-500.0,0.00013698,2]
[331610932,1720581036798,-500.0,0.00013698,2]
[331610933,1720581036808,-500.0,0.00013698,2]
[331610934,1720581036819,-1098.68,0.00013698,2]
[331610935,1720581036830,-521.59,0.00013698,2]
[331610936,1720581036841,-855.37,0.00013698,2]
[331610937,1720581036852,-500.0,0.00013698,2]
[331610938,1720581036861,-577.40348743,0.00013698,2]
[331610939,1720581036871,-500.0,0.00013698,2]
[331610940,1720581036880,-500.0,0.00013698,2]
[331610941,1720581036893,-1082.32,0.00013698,2]
[331610942,1720581036903,-500.0,0.00013698,2]
[331610943,1720581036915,-803.44,0.00013698,2]
[331610944,1720581036926,-500.0,0.00013698,2]
[331610945,1720581036937,-733.56,0.00013698,2]
[331610946,1720581036947,-585.91703501,0.00013698,2]
[331610947,1720581036959,-500.0,0.00013698,2]
[331610948,1720581036968,-2704.38,0.00013698,2]
[331610949,1720581036978,-500.0,0.00013698,2]
[331610950,1720581036990,-500.0,0.00013698,2]
[331610951,1720581037000,-2150.21,0.00013698,2]
[331610952,1720581037010,-500.0,0.00013698,2]
[331610953,1720581037020,-500.0,0.00013698,2]
[331610954,1720581037029,-500.0,0.00013698,2]
[331610955,1720581037039,-521.8,0.00013698,2]
[331610956,1720581037050,-155.38601885,0.00013698,2]
[331610957,1720581037060,-500.0,0.00013698,2]
[331610958,1720581037071,-500.0,0.00013698,2]
[331610959,1720581037081,-2479.0,0.00013698,2]
[331610960,1720581037091,-500.0,0.00013698,2]
[331610961,1720581037102,-500.0,0.00013698,2]
[331610962,1720581037111,-500.0,0.00013698,2]
[331610963,1720581037121,-1854.92,0.00013698,2]
[331610964,1720581037131,-500.0,0.00013698,2]
[331610965,1720581037141,-500.0,0.00013698,2]
[331610966,1720581037150,-500.0,0.00013698,2]
[331610967,1720581037159,-1041.34,0.00013698,2]
[331610968,1720581037169,-500.0,0.00013698,2]
[331610969,1720581037179,-954.84,0.00013698,2]
[331610970,1720581037189,-693.51,0.00013698,2]
[331610971,1720581037198,-401.92824864,0.00013698,2]
[331610972,1720581037208,-500.0,0.00013698,2]
[331610973,1720581037218,-500.0,0.00013698,2]
[331610974,1720581037228,-606.98,0.00013698,2]
[331610975,1720581037237,-4149.1,0.00013698,2]
[331610976,1720581037247,-500.0,0.00013698,2]
[331610977,1720581037257,-500.0,0.00013698,2]
[331610978,1720581037267,-500.0,0.00013698,2]
[331610979,1720581037276,-500.0,0.00013698,2]
[331610980,1720581037286,-500.0,0.00013698,2]
[331610981,1720581037296,-500.0,0.00013698,2]
[331610982,1720581037306,-1393.63,0.00013698,2]
[331610983,1720581037315,-500.0,0.00013698,2]
[331610984,1720581037325,-2846.49,0.00013698,2]
[331610985,1720581037334,-500.0,0.00013698,2]
[331610986,1720581037344,-500.0,0.00013698,2]
[331610987,1720581037355,-500.0,0.00013698,2]
[331610988,1720581037365,-500.0,0.00013698,2]
[331610989,1720581037374,-500.0,0.00013698,2]
[331610990,1720581037384,-500.0,0.00013698,2]
[331610991,1720581037393,-500.0,0.00013698,2]
[331610992,1720581037403,-500.0,0.00013698,2]
[331610993,1720581037412,-500.0,0.00013698,2]
[331610994,1720581037422,-500.0,0.00013698,2]
[331610995,1720581037431,-554.33,0.00013698,2]
[331610996,1720581037441,-500.0,0.00013698,2]
[331610997,1720581037451,-1328.09,0.00013698,2]
[331610998,1720581037460,-500.0,0.00013698,2]
[331610999,1720581037470,-500.0,0.00013698,2]
[331611000,1720581037480,-500.0,0.00013698,2]
[331611001,1720581037490,-500.0,0.00013698,2]
[331611002,1720581037500,-4181.94,0.00013698,2]
[331611003,1720581037509,-566.31,0.00013698,2]
[331611004,1720581037519,-500.0,0.00013698,2]
[331611005,1720581037528,-500.0,0.00013698,2]
[331611006,1720581037538,-500.0,0.00013698,2]
[331611007,1720581037548,-915.11,0.00013698,2]
[331611008,1720581037558,-500.0,0.00013698,2]
[331611009,1720581037567,-500.0,0.00013698,2]
[331611010,1720581037577,-1585.84,0.00013698,2]
[331611011,1720581037587,-845.71,0.00013698,2]
[331611012,1720581037597,-727.66,0.00013698,2]
[331611013,1720581037609,-500.0,0.00013698,2]
[331611014,1720581037618,-978.6,0.00013698,2]
[331611015,1720581037627,-500.0,0.00013698,2]
[331611016,1720581037639,-903.27,0.00013698,2]
[331611017,1720581037650,-500.0,0.00013698,2]
[331611018,1720581037660,-948.04,0.00013698,2]
[331611019,1720581037670,-500.0,0.00013698,2]
[331611020,1720581037679,-1361.12,0.00013698,2]
[331611021,1720581037689,-500.0,0.00013698,2]
[331611022,1720581037698,-500.0,0.00013698,2]
[331611023,1720581037708,-536.17,0.00013698,2]
[331611024,1720581037718,-500.0,0.00013698,2]
[331611025,1720581037729,-1036.94,0.00013698,2]
[331611026,1720581037738,-640.67130135,0.00013698,2]
[331611027,1720581037748,-500.0,0.00013698,2]
[331611028,1720581037757,-500.0,0.00013698,2]
[331611029,1720581037767,-500.0,0.00013698,2]
[331611030,1720581037777,-500.0,0.00013698,2]
[331611031,1720581037786,-500.0,0.00013698,2]
[331611032,1720581037796,-757.6,0.00013698,2]
[331611033,1720581037805,-797.66,0.00013698,2]
[331611034,1720581037815,-500.0,0.00013698,2]
[331611035,1720581037824,-500.0,0.00013698,2]
[331611036,1720581037834,-2366.06,0.00013698,2]
[331611037,1720581037843,-780.09,0.00013698,2]
[331611038,1720581037855,-500.0,0.00013698,2]
[331611039,1720581037864,-500.0,0.00013698,2]
[331611040,1720581037874,-845.65,0.00013698,2]
[331611041,1720581037884,-803.44,0.00013698,2]
[331611042,1720581037894,-2048.85,0.00013698,2]
[331611043,1720581037904,-500.0,0.00013698,2]
[331611044,1720581037914,-500.0,0.00013698,2]
[331611045,1720581037924,-500.0,0.00013698,2]
[331611046,1720581037935,-500.0,0.00013698,2]
[331611047,1720581037946,-1022.78,0.00013698,2]
[331611048,1720581037956,-1328.97,0.00013698,2]
[331611049,1720581037967,-969.43,0.00013698,2]
[331611050,1720581037977,-500.0,0.00013698,2]
[331611051,1720581037987,-500.0,0.00013698,2]
[331611052,1720581037997,-500.0,0.00013698,2]
[331611064,1720581038418,-967.98,0.00013698,2]
[331611065,1720581038428,-1185.18,0.00013698,2]
[331611066,1720581038438,-894.77,0.00013698,2]
[331611067,1720581038449,-500.0,0.00013698,2]
[331611068,1720581038460,-500.0,0.00013698,2]
[331611069,1720581038470,-500.0,0.00013698,2]
[331611070,1720581038479,-500.0,0.00013698,2]
[331611071,1720581038489,-1316.35,0.00013698,2]
[331611072,1720581038499,-500.0,0.00013698,2]
[331611073,1720581038509,-1644.77,0.00013698,2]
[331611074,1720581038518,-500.0,0.00013698,2]
[331611075,1720581038528,-728.86,0.00013698,2]
[331611076,1720581038537,-500.0,0.00013698,2]
[331611077,1720581038547,-500.0,0.00013698,2]
[331611078,1720581038556,-1052.39,0.00013698,2]
[331611079,1720581038566,-1318.29,0.00013698,2]
[331611080,1720581038575,-500.0,0.00013698,2]
[331611081,1720581038585,-500.0,0.00013698,2]
[331611082,1720581038594,-974.1,0.00013698,2]
[331611083,1720581038605,-519.69007357,0.00013698,2]
[331611084,1720581038615,-1739.31,0.00013698,2]
[331611085,1720581038624,-500.0,0.00013698,2]
[331611086,1720581038635,-161.01409596,0.00013698,2]
[331611087,1720581038646,-565.57,0.00013698,2]
[331611088,1720581038656,-500.0,0.00013698,2]
[331611089,1720581038666,-781.68,0.00013698,2]
[331611090,1720581038675,-627.31,0.00013698,2]
[331611091,1720581038685,-500.0,0.00013698,2]
[331611092,1720581038695,-871.88,0.00013698,2]
[331611093,1720581038704,-500.0,0.00013698,2]
[331611094,1720581038714,-500.0,0.00013698,2]
[331611095,1720581038724,-1116.68,0.00013698,2]
[331611096,1720581038733,-1375.52,0.00013698,2]
[331611097,1720581038743,-500.0,0.00013698,2]
[331611098,1720581038753,-982.3,0.00013698,2]
[331611099,1720581038763,-500.0,0.00013698,2]
[331611100,1720581038773,-500.0,0.00013698,2]
[331611101,1720581038783,-500.0,0.00013698,2]
[331611102,1720581038793,-1584.69,0.00013698,2]
[331611103,1720581038803,-500.0,0.00013698,2]
[331611104,1720581038813,-795.56,0.00013698,2]
[331611105,1720581038823,-500.0,0.00013698,2]
[331611106,1720581038833,-529.81,0.00013698,2]
[331611107,1720581038843,-500.0,0.00013698,2]
[331611109,1720581038854,-3084.84,0.00013698,2]
[331611111,1720581038863,-500.0,0.00013698,2]
[331611113,1720581038873,-500.0,0.00013698,2]
[331611115,1720581038883,-581.07,0.00013698,2]
[331611117,1720581038893,-500.0,0.00013698,2]
[331611119,1720581038902,-500.0,0.00013698,2]
[331611121,1720581038913,-863.4,0.00013698,2]
[331611123,1720581038924,-1988.86,0.00013698,2]
[331611125,1720581038935,-378.00445828,0.00013698,2]
[331611127,1720581038946,-500.0,0.00013698,2]
[331611129,1720581038956,-1241.52,0.00013698,2]
[331611131,1720581038968,-500.0,0.00013698,2]
[331611133,1720581038978,-500.0,0.00013698,2]
[331611135,1720581038988,-2992.51,0.00013698,2]
[331611137,1720581038998,-650.52,0.00013698,2]
[331611139,1720581039007,-500.0,0.00013698,2]
[331611141,1720581039017,-1197.15,0.00013698,2]
[331611143,1720581039028,-2116.14,0.00013698,2]
[331611145,1720581039038,-553.08,0.00013698,2]
[331611147,1720581039048,-500.0,0.00013698,2]
[331611149,1720581039058,-2085.66,0.00013698,2]
[331611151,1720581039067,-500.0,0.00013698,2]
[331611153,1720581039078,-524.46,0.00013698,2]
[331611155,1720581039087,-500.0,0.00013698,2]
[331611157,1720581039098,-776.95,0.00013698,2]
[331611159,1720581039112,-500.0,0.00013698,2]
[331611161,1720581039122,-2404.97,0.00013698,2]
[331611163,1720581039132,-500.0,0.00013698,2]
[331611165,1720581039142,-500.0,0.00013698,2]
[331611167,1720581039152,-955.92,0.00013698,2]
[331611169,1720581039162,-1630.23,0.00013698,2]
[331611171,1720581039172,-500.0,0.00013698,2]
[331611173,1720581039182,-500.0,0.00013698,2]
[331611175,1720581039192,-1545.94,0.00013698,2]
[331611177,1720581039203,-2512.3,0.00013698,2]
[331611179,1720581039213,-708.06,0.00013698,2]
[331611180,1720581039224,-669.55,0.00013698,2]
[331611181,1720581039234,-500.0,0.00013698,2]
[331611182,1720581039244,-500.0,0.00013698,2]
[331611183,1720581039254,-2373.61,0.00013698,2]
[331611184,1720581039264,-500.0,0.00013698,2]
[331611185,1720581039274,-600.12,0.00013698,2]
[331611186,1720581039284,-1030.8,0.00013698,2]
[331611187,1720581039294,-1100.38,0.00013698,2]
[331611188,1720581039304,-3944.95,0.00013698,2]
[331611189,1720581039314,-500.0,0.00013698,2]
[331611190,1720581039324,-500.0,0.00013698,2]
[331611191,1720581039334,-555.69,0.00013698,2]
[331611192,1720581039344,-1289.6,0.00013698,2]
[331611193,1720581039355,-1422.15,0.00013698,2]
[331611194,1720581039364,-500.0,0.00013698,2]
[331611195,1720581039374,-1379.63,0.00013698,2]
[331611196,1720581039384,-2124.51,0.00013698,2]
[331611197,1720581039394,-500.0,0.00013698,2]
[331611198,1720581039404,-730.93,0.00013698,2]
[331611199,1720581039413,-1572.5,0.00013698,2]
[331611200,1720581039423,-500.0,0.00013698,2]
[331611201,1720581039432,-1296.06,0.00013698,2]
[331611202,1720581039442,-3860.8,0.00013698,2]
[331611203,1720581039453,-500.0,0.00013698,2]
[331611204,1720581039463,-500.0,0.00013698,2]
[331611205,1720581039472,-1229.54,0.00013698,2]
[331611206,1720581039482,-1125.36,0.00013698,2]
[331611207,1720581039492,-500.0,0.00013698,2]
[331611208,1720581039501,-500.0,0.00013698,2]
[331611209,1720581039511,-500.0,0.00013698,2]
[331611210,1720581039520,-500.0,0.00013698,2]
[331611211,1720581039530,-1372.37,0.00013698,2]
[331611212,1720581039539,-1121.29,0.00013698,2]
[331611213,1720581039549,-859.11,0.00013698,2]
[331611214,1720581039558,-2837.31,0.00013698,2]
[331611215,1720581039568,-526.35,0.00013698,2]
[331611216,1720581039578,-500.0,0.00013698,2]
[331611217,1720581039587,-532.4,0.00013698,2]
[331611218,1720581039597,-1054.88,0.00013698,2]
[331611220,1720581039610,-2427.68,0.00013698,2]
[331611221,1720581039621,-560.37,0.00013698,2]
[331611222,1720581039634,-729.76,0.00013698,2]
[331611223,1720581039645,-500.0,0.00013698,2]
[331611224,1720581039655,-1680.78,0.00013698,2]
[331611225,1720581039665,-500.0,0.00013698,2]
[331611226,1720581039675,-870.15,0.00013698,2]
[331611227,1720581039685,-1221.34,0.00013698,2]
[331611228,1720581039695,-2796.44,0.00013698,2]
[331611229,1720581039705,-288.94414164,0.00013698,2]